[Event "Magistral Punta del Este 2025"]
[Site "Punta Ballena Maldonado"]
[Date "2025.03.15"]
[Round "1.1"]
[White "Mareco, Sandro"]
[Black "Flores, Diego"]
[Result "1-0"]
[Annotator "TA"]
[ECO "C50"]
[WhiteElo "2591"]
[BlackElo "2551"]
[PlyCount "65"]
[EventDate "2025.03.13"]
[EventType "tourn"]
[EventCountry "URU"]
[SourceTitle "playchess.com"]
[Source "ChessBase"]
[SourceQuality "1"]
[TimeControl "5400+30"]

{[%evp 10,65,19,31,24,12,15,0,6,10,10,7,24,15,18,17,38,19,40,37,41,44,42,35,56,38,76,78,118,55,70,53,59,52,65,66,81,62,227,110,126,120,322,312,477,466,609,591,614,609,593,506,860,839,851,856,832,826]} 1. e4 {[%emt 0:00:03]} e5 {[%emt 0:01:34]} 2. Nf3 {[%emt 0:00:05]} Nc6 {[%emt 0:00:05]} 3. Bc4 {[%emt 0:00:04]} Bc5 {[%emt 0:00:19]} 4. d3 {[%emt 0:00:05]} Nf6 {[%emt 0:00:24]} 5. Bg5 {[%emt 0:00:07]} h6 {[%emt 0:02:27]} 6. Bh4 {[%emt 0:00:05]} Be7 {[%emt 0:01:42] C50: Hungarian Defence and Giuoco Pianissimo.} 7. c3 {[%emt 0:00:15]} O-O {[%emt 0:00:37]} 8. a4 {[%emt 0:01:11]} d6 {[%emt 0:12:03] The position is equal.} 9. Nbd2 {[%emt 0:00:07]} Nh5 {[%emt 0:02:06]} 10. Bg3 {[%emt 0:00:07]} g6 {[%emt 0:00:36]} 11. h3 {[%emt 0:00:07]} a5 {[%emt 0:07:43]} 12. Bh2 {[%emt 0:03:24]} Bf6 $146 {[%emt 0:02:47]} (12... Bg5 13. Nf1 Be6 14. Bxe6 fxe6 15. Nxg5 Qxg5 16. Ne3 Nf4 17. Bg3 Kg7 18. O-O Rf7 {0-1 Firouzja,A (2759)-Artemiev,V (2704) Goldmoney Asian Prelim rapid 2021 (5.4)}) 13. Qb3 {[%emt 0:04:43]} Nb8 {[%emt 0:04:55]} 14. O-O {[%emt 0:11:16]} Bg7 {[%emt 0:03:21]} 15. d4 {[%emt 0:02:43][%cal Rd4e5]} Nd7 {[%emt 0:07:25]} 16. Bb5 {[%emt 0:12:07]} Qe7 {[%emt 0:18:44]} 17. Rfe1 {[%emt 0:02:26]} Nhf6 {[%emt 0:05:46][%cal Bh5f6,Bf6h7,Bh7g5][%mdl 32]} 18. Rad1 {[%emt 0:06:37]} Re8 {[%emt 0:02:36]} 19. Qc2 {[%emt 0:06:23] White has more active pieces.} (19. Nc4 $16) 19... Nh7 {[%emt 0:03:56]} 20. Bg3 {[%emt 0:05:00][%cal Bh2g3,Bg3f4,Bf4g5][%mdl 32]} Ng5 {[%emt 0:05:12]} 21. Kh1 {[%emt 0:17:43]} Bf6 {[%emt 0:04:26]} 22. Nh2 {[%emt 0:01:17]} c6 {[%emt 0:03:19]} 23. Bf1 {[%emt 0:01:23]} h5 $2 {[%emt 0:05:11] [#]} (23... Nb6 $14) 24. f4 {[%emt 0:01:46]} (24. Nc4 $1 $18 {is more deadly.}) 24... exf4 $16 {[%emt 0:03:18]} 25. Bxf4 {[%emt 0:00:06]} Bg7 $2 {[%emt 0:00:19] [#]} (25... Ne6 $16) 26. Nc4 $1 $18 {[%emt 0:04:18]} d5 {[%emt 0:01:02]} (26... Qf6 {was necessary.}) 27. exd5 {[%emt 0:00:36] White is clearly winning.} Qxe1 {[%emt 0:00:10]} 28. Rxe1 {[%emt 0:00:03]} ({Less strong is} 28. Bxg5 Qg3 29. Qd2 cxd5 $14) 28... Rxe1 {[%emt 0:00:04]} 29. Bxg5 {[%emt 0:00:06]} cxd5 {[%emt 0:00:11]} 30. Nd6 {[%emt 0:03:38] And now Qf2 would win.} Bf8 {[%emt 0:01:05] [#]} (30... Nf6 $142 31. Bh4 (31. Qf2 Re6 $18) 31... Re6 32. Nxc8 Rxc8) 31. Nxf7 $1 {[%emt 0:01:34][%mdl 512]} Rxf1+ {[%emt 0:00:20]} 32. Nxf1 {[%emt 0:00:04]} Kxf7 {[%emt 0:00:03]} 33. Ne3 {[%emt 0:00:07] Weighted Error Value: White=0.17 (very precise) /Black=0.57  Loses game:     	---       	Black=2      Mistake:       	White=2     	Black=1      Inaccurate:     	---       	Black=3      OK:         	White=5     	Black=6      Best:        	White=1     	Black=1      Strong:       	White=1     	---} 1-0

[Event "Magistral Punta del Este 2025"]
[Site "Punta Ballena Maldonado"]
[Date "2025.03.15"]
[Round "1.2"]
[White "Cuenca Jimenez, Jose Fernando"]
[Black "Galaviz Medina, Sion Radamantys"]
[Result "1-0"]
[Annotator "TA"]
[ECO "E36"]
[WhiteElo "2479"]
[BlackElo "2501"]
[PlyCount "53"]
[EventDate "2025.03.13"]
[EventType "tourn"]
[EventCountry "URU"]
[SourceTitle "playchess.com"]
[Source "ChessBase"]
[SourceQuality "1"]
[TimeControl "5400+30"]

{[%evp 12,53,6,-1,14,10,7,9,16,23,18,-10,21,-12,-10,-14,-16,-27,5,-33,-37,-29,-14,-36,95,70,314,307,545,417,529,583,615,594,595,372,607,582,602,611,592,594,570,554]} 1. d4 {[%emt 0:00:05]} Nf6 {[%emt 0:00:14]} 2. c4 {[%emt 0:00:21]} e6 {[%emt 0:00:17]} 3. Nc3 {[%emt 0:00:30]} Bb4 {[%emt 0:03:10]} 4. Qc2 {[%emt 0:00:24]} d5 {[%emt 0:02:50]} 5. a3 {[%emt 0:03:20]} Bxc3+ {[%emt 0:03:10]} 6. Qxc3 {[%emt 0:00:13]} O-O {[%emt 0:00:04] outshines the older 6...Ne4.} 7. Nf3 {[%emt 0:00:31]} b6 {[%emt 0:15:33] E36: Nimzo-Indian: Classical: 4...d5 5 a3.} 8. Bg5 {[%emt 0:01:58]} dxc4 {[%emt 0:08:35]} 9. Qxc4 {[%emt 0:03:50]} Ba6 {[%emt 0:00:36] The position is equal.} 10. Qa4 {[%emt 0:02:07]} h6 {[%emt 0:03:50]} 11. Bh4 {[%emt 0:07:04]} Qe7 {[%emt 0:40:50]} 12. g4 $146 {[%emt 0:15:43]} ({Predecessor:} 12. Rc1 c5 13. dxc5 Rc8 14. c6 b5 15. Qa5 Qc7 16. Qxc7 Rxc7 17. Ne5 g5 18. Bg3 {½-½ Indjic,A (2604)-Nakamura,H (2736) Titled Tuesday intern op 22nd Feb Early blitz 2022 (10)}) 12... Bb7 {[%emt 0:04:37]} 13. g5 {[%emt 0:04:56]} hxg5 {[%emt 0:00:01]} 14. Bxg5 {[%emt 0:00:05]} Qd7 {[%emt 0:00:13]} 15. Qc2 {[%emt 0:02:55] [#]} (15. Qxd7 {simplifies} Nbxd7 16. Rg1 Rfc8 17. Rc1) 15... Bxf3 $1 {[%emt 0:03:33]} 16. exf3 {[%emt 0:00:12] And now Bxf6 would win.} Qxd4 {[%emt 0:00:03]} 17. Rg1 {[%emt 0:07:37][%cal Of1e2]} Nh5 {[%emt 0:10:41]} (17... Rd8 $15 {keeps the upper hand.}) 18. Be2 $16 {[%emt 0:09:57][%cal Bf1e2,Be2d3,Bd3c4][%mdl 32]} f5 $2 {[%emt 0:00:35] Prevents Qe4. Loses the game.} ({Black should try} 18... c6 $14) 19. Rd1 $18 {[%emt 0:09:21]} (19. Qxc7 Qxb2 20. Rd1 Qxa3) 19... Qc5 {[%emt 0:00:03] [#]} (19... Qe5 20. Qc4 Qxb2) 20. Qb3 $1 {[%emt 0:05:08] Active counter play!} Nc6 {[%emt 0:01:02]} 21. Qxe6+ {[%emt 0:00:53]} Rf7 {[%emt 0:00:00] Black is weak on the light squares} 22. Be3 {[%emt 0:03:03] Dodges Nd4. A strong pair of Bishops.} Qc2 {[%emt 0:00:01]} 23. Bd3 {[%emt 0:02:57]} Qxb2 {[%emt 0:00:01]} (23... Qa4 24. b3 (24. Bxf5 Qa5+ 25. Kf1 Qxf5 $14) 24... Qa5+ 25. b4 Qxa3 26. Qxc6 Rd8) 24. Qxc6 {[%emt 0:00:34] White is clearly winning.} Rd8 {[%emt 0:00:01]} 25. Bc4 {[%emt 0:03:11][%csl LRc7,LRd8,LRf7]} Qc3+ {[%emt 0:00:01]} 26. Bd2 {[%emt 0:01:44]} Qe5+ {[%emt 0:00:08]} 27. Kf1 {[%emt 0:00:11] Weighted Error Value: White=0.24 (precise) /Black=0.53  Loses game:     	---       	Black=1      Mistake:       	---       	Black=3      Inaccurate:     	White=2     	Black=2      OK:         	White=8     	Black=8      Best:        	White=3     	---        Strong:       	White=1     	Black=1} 1-0

[Event "Magistral Punta del Este 2025"]
[Site "Punta Ballena Maldonado"]
[Date "2025.03.15"]
[Round "1.3"]
[White "Rodriguez Vila, Andres"]
[Black "Oro, Faustino"]
[Result "1/2-1/2"]
[Annotator "TA"]
[ECO "A05"]
[WhiteElo "2429"]
[BlackElo "2447"]
[PlyCount "143"]
[EventDate "2025.03.13"]
[EventType "tourn"]
[EventCountry "URU"]
[SourceTitle "playchess.com"]
[Source "ChessBase"]
[SourceQuality "1"]
[TimeControl "5400+30"]

{[%evp 9,143,2,1,8,8,6,9,8,4,-4,0,-23,-24,-20,-13,-16,-17,-14,1,-25,-20,-20,-11,-22,-15,-16,-4,-5,-6,-3,0,-64,-60,-83,-76,-80,-68,-79,-77,-65,0,-6,0,0,0,0,0,0,0,0,0,0,0,0,0,-8,0,0,0,0,0,0,0,0,0,0,0,0,0,0,0,0,0,0,0,0,0,0,0,0,0,0,0,0,0,0,0,0,0,0,16,0,61,68,86,86,86,86,86,86,86,86,86,86,86,86,86,86,89,89,89,89,89,89,89,89,137,137,137,0,0,0,0,0,0,0,0,0,0,0,0,0,0,0,0,0]} 1. Nf3 {[%emt 0:00:13]} Nf6 {[%emt 0:00:44]} 2. g3 {[%emt 0:00:19]} b5 {[%emt 0:05:35]} 3. e3 {[%emt 0:00:28]} c6 {[%emt 0:02:30]} 4. d4 $146 {[%emt 0:01:15]} (4. c4 a6 5. b3 d5 6. Bg2 e6 7. O-O Be7 8. d4 O-O 9. c5 Nfd7 10. a4 bxa4 11. Rxa4 {1-0 Hammer,J (2628)-Karttunen,M (2450) Nordic-ch Sastamala 2016 (4)}) 4... d5 {[%emt 0:06:12]} 5. a4 {[%emt 0:00:10]} b4 {[%emt 0:01:25]} 6. c4 {[%emt 0:00:29] A05: Réti Opening: 1 Nf3 Nf6.} bxc3 {[%emt 0:02:54]} 7. bxc3 {[%emt 0:00:13]} e6 {[%emt 0:03:28]} 8. Nbd2 {[%emt 0:01:36]} Be7 {[%emt 0:07:57]} 9. Ba3 {[%emt 0:00:13]} O-O {[%emt 0:02:04]} 10. Bd3 {[%emt 0:02:24]} Bxa3 {[%emt 0:09:46]} 11. Rxa3 {[%emt 0:00:05]} Qe7 {[%emt 0:00:12]} 12. Qc1 {[%emt 0:04:35]} Nbd7 {[%emt 0:04:26]} 13. c4 {[%emt 0:06:45]} dxc4 {[%emt 0:07:16]} 14. Nxc4 {[%emt 0:02:44]} c5 {[%emt 0:00:55]} 15. Na5 {[%emt 0:04:54] Prevents Bb7} cxd4 {[%emt 0:06:10]} 16. Nxd4 {[%emt 0:00:11]} Ne5 {[%emt 0:02:06]} 17. Ndc6 {[%emt 0:17:11] Prevents Qb4+.} Qd6 {[%emt 0:10:06]} 18. Nxe5 {[%emt 0:00:27]} Qxe5 {[%emt 0:00:04]} 19. Qc3 {[%emt 0:01:36]} Qh5 {[%emt 0:02:10]} (19... Qxc3+ {simplifies} 20. Rxc3 Bd7 21. Ke2 Bxa4 22. Ra1 Bd7) 20. Be2 {[%emt 0:06:37]} ({White should try} 20. O-O $11) 20... Qh3 $1 $15 {[%emt 0:02:10]} 21. Bf3 {[%emt 0:08:22]} Rb8 {[%emt 0:01:36]} 22. Rb3 {[%emt 0:00:59]} Bd7 {[%emt 0:02:19]} 23. Rxb8 $1 {[%emt 0:06:29]} Rxb8 {[%emt 0:00:04]} 24. Nc6 {[%emt 0:01:21]} Bxc6 {[%emt 0:02:45]} (24... Rb1+ $15 25. Ke2 Rxh1 26. Bxh1 Qg4+ (26... Qxh2 27. Bf3 $15) 27. Bf3 Qxa4) 25. Qxc6 $11 {[%emt 0:01:22]} h6 {[%emt 0:03:06]} 26. Bg2 $1 $36 {[%emt 0:02:06][%mdl 2048] White is more active.} Qf5 {[%emt 0:02:53] ( -> ...Qb1+)} (26... Rb1+ 27. Kd2 Qf5 (27... Rb2+ $2 28. Kc1 $18) 28. Rxb1 Qxb1 29. Bf3 $15) 27. O-O {[%emt 0:00:10]} a5 {[%emt 0:00:25]} 28. h3 {[%emt 0:04:00]} h5 {[%emt 0:05:12]} 29. Rc1 {[%emt 0:04:14]} Rb2 {[%emt 0:04:21]} 30. Qf3 {[%emt 0:00:27] Successful Defense White} Rb1 {[%emt 0:01:02]} 31. Rxb1 {[%emt 0:03:10]} Qxb1+ {[%emt 0:00:02][%mdl 4096] Endgame KQB-KQN} 32. Bf1 {[%emt 0:01:37] aiming for Qa8+.} Qb4 {[%emt 0:01:37]} 33. Bb5 {[%emt 0:01:44]} Qd2 {[%emt 0:01:33]} 34. Kg2 {[%emt 0:02:17]} Qd8 {[%emt 0:00:29]} 35. Bc6 {[%emt 0:02:30]} Qd6 {[%emt 0:00:47]} 36. Bb7 {[%emt 0:02:31]} Qb4 {[%emt 0:00:30]} 37. Bc6 {[%emt 0:01:06]} Qd6 {[%emt 0:00:03]} 38. Bb5 {[%emt 0:00:38]} Qd8 {[%emt 0:00:18]} 39. Qb7 {[%emt 0:01:23]} g6 {[%emt 0:01:00]} 40. Bc6 {[%emt 0:00:13]} Kg7 {[%emt 0:00:16]} 41. Bf3 {[%emt 0:00:50]} Qd2 {[%emt 0:00:42]} 42. Qb5 {[%emt 0:00:29]} Qc3 {[%emt 0:00:32]} 43. g4 {[%emt 0:01:33]} hxg4 {[%emt 0:00:01]} 44. hxg4 {[%emt 0:00:08]} Ng8 {[%emt 0:01:21]} 45. Qb7 {[%emt 0:02:43]} Nh6 {[%emt 0:01:23]} 46. Be2 {[%emt 0:01:22]} Ng8 {[%emt 0:00:20]} 47. g5 {[%emt 0:01:47]} Qe5 {[%emt 0:00:36]} 48. Qb5 $1 {[%emt 0:00:18]} Qc7 {[%emt 0:00:34]} 49. Qb2+ {[%emt 0:00:25]} e5 {[%emt 0:00:30]} 50. f4 {[%emt 0:01:44]} Qc6+ {[%emt 0:00:27]} (50... f6 $11) 51. Kf2 $14 {[%emt 0:01:00]} Qxa4 {[%emt 0:00:11]} 52. Qxe5+ {[%emt 0:00:03]} Kf8 {[%emt 0:00:50] [#]} 53. Qd5 $1 {[%emt 0:00:03]} Ne7 {[%emt 0:00:34]} 54. Qd8+ {[%emt 0:00:14]} Qe8 {[%emt 0:00:01]} 55. Qxa5 {[%emt 0:00:06]} Nf5 {[%emt 0:00:22]} 56. Qc3 {[%emt 0:00:26]} Kg8 {[%emt 0:00:06] Against Qh8+} 57. Bf3 {[%emt 0:01:09] Against Qa8} Qe6 {[%emt 0:00:23]} 58. Qd2 {[%emt 0:01:13] Dodges Qa2} Qe7 {[%emt 0:00:14]} 59. Bd5 {[%emt 0:00:33]} Qc5 {[%emt 0:00:19]} 60. Bb3 {[%emt 0:00:49]} Qb6 {[%emt 0:00:34]} 61. Qc3 {[%emt 0:00:23] Prevents Qxb3} Qb7 {[%emt 0:00:59]} 62. Qd3 {[%emt 0:01:44]} Qh1 {[%emt 0:01:30]} (62... Kg7 $142) 63. Qd8+ $16 {[%emt 0:02:34]} Kh7 {[%emt 0:00:01] [#] aiming for ...Qh2+.} 64. Qe8 {[%emt 0:00:20] Active counter play!} ({But not} 64. Bxf7 $6 Qh2+ 65. Ke1 (65. Kf3 Qh3+ 66. Ke2 Qxe3+ 67. Kd1 Qg1+ 68. Kc2 Qf2+ 69. Kb1 Qf1+ 70. Kb2 Qf2+ 71. Kb1 Qg1+ 72. Kc2 Nd4+ 73. Kb2 Qg2+ 74. Ka1 Qf1+ 75. Ka2 Qa6+ 76. Kb2 Qb7+ 77. Kc1 Qc6+ 78. Kb2 Qc2+ 79. Ka3 Qc5+ 80. Kb2 Qc2+ 81. Ka3 Qc3+ 82. Ka2 Qd2+ 83. Kb1 Qd3+ 84. Ka2 Qa6+ 85. Kb2 Qe2+ 86. Ka1 Qd1+ 87. Kb2 Qd2+ 88. Kb1 Qd3+ 89. Kb2 Qc2+ $11) 65... Qg1+ (65... Nxe3 66. Qg8#) 66. Ke2 Qxe3+ (66... Nxe3 67. Qg8#) 67. Kd1 Qf3+ 68. Kc2 Qf2+ (68... Qxf4 69. Qg8#) 69. Kb1 Qe1+ 70. Kc2 Nd4+ 71. Qxd4 Qc3+ 72. Qxc3 $11) (64. Qd5 $1 $16 {[%cal Rd5f7]} Qh2+ 65. Qg2 Qxg2+ 66. Kxg2 Nxe3+ 67. Kf3) 64... Qh2+ $11 {[%emt 0:00:37] The position is equal.} 65. Ke1 {[%emt 0:00:08]} Qg1+ {[%emt 0:00:05]} 66. Ke2 {[%emt 0:00:49]} Qg2+ {[%emt 0:00:28]} 67. Kd3 {[%emt 0:00:32]} Qf1+ {[%emt 0:00:05]} 68. Kc2 {[%emt 0:00:40]} Qe2+ {[%emt 0:00:13]} 69. Kb1 {[%emt 0:00:10]} Qe1+ {[%emt 0:00:26]} 70. Kb2 {[%emt 0:00:37]} Qd2+ {[%emt 0:00:18]} 71. Kb1 {[%emt 0:00:39]} Qe1+ {[%emt 0:00:13]} 72. Kb2 {[%emt 0:00:14] Weighted Error Value: White=0.04 (flawless) /Black=0.06 (flawless)   Mistake:       	White=2     	Black=3      Inaccurate:     	White=1     	---        OK:         	White=18    	Black=34     Best:        	White=4     	Black=5      Strong:       	White=4     	Black=1} 1/2-1/2

[Event "Magistral Punta del Este 2025"]
[Site "Punta Ballena Maldonado"]
[Date "2025.03.15"]
[Round "2.1"]
[White "Flores, Diego"]
[Black "Oro, Faustino"]
[Result "0-1"]
[Annotator "ChessBase"]
[ECO "A13"]
[WhiteElo "2551"]
[BlackElo "2447"]
[PlyCount "120"]
[EventDate "2025.03.13"]
[EventType "tourn"]
[EventCountry "URU"]
[SourceTitle "playchess.com"]
[Source "ChessBase"]
[SourceQuality "1"]
[TimeControl "5400+30"]

1. Nf3 {[%emt 0:00:45]} d5 {[%emt 0:00:14]} 2. e3 {[%emt 0:04:28]} Nf6 {[%emt 0:00:19]} 3. c4 {[%emt 0:01:46]} e6 {[%emt 0:00:27]} 4. b3 {[%emt 0:00:46]} Bd6 {[%emt 0:01:52]} 5. Bb2 {[%emt 0:01:10]} b6 {[%emt 0:01:42]} 6. g4 {[%emt 0:05:55]} O-O {[%emt 0:09:35]} 7. g5 {[%emt 0:01:58]} Ne4 {[%emt 0:06:04]} 8. h4 {[%emt 0:04:04]} dxc4 {[%emt 0:05:10]} 9. bxc4 {[%emt 0:10:45]} Bb7 {[%emt 0:01:45]} 10. Bg2 {[%emt 0:39:22]} Nd7 {[%emt 0:04:40]} 11. d3 {[%emt 0:06:40]} Nec5 {[%emt 0:07:04]} 12. d4 {[%emt 0:00:32]} Ne4 {[%emt 0:02:06]} 13. O-O {[%emt 0:02:39]} f6 {[%emt 0:07:07]} 14. c5 {[%emt 0:09:17]} bxc5 {[%emt 0:02:04]} 15. Nc3 {[%emt 0:03:47]} Qe8 {[%emt 0:12:10]} 16. Ne1 {[%emt 0:02:40]} Nxc3 {[%emt 0:03:17]} 17. Bxc3 {[%emt 0:00:04]} Bxg2 {[%emt 0:00:19]} 18. Nxg2 {[%emt 0:00:05]} cxd4 {[%emt 0:04:11]} 19. Qxd4 {[%emt 0:00:15]} Be5 {[%emt 0:01:25]} 20. Qc4 {[%emt 0:00:11]} Kh8 {[%emt 0:03:21]} 21. f4 {[%emt 0:00:39]} Nb6 {[%emt 0:02:29]} 22. Qb3 {[%emt 0:00:06]} Bd6 {[%emt 0:00:12]} 23. Rac1 {[%emt 0:02:37]} Rb8 {[%emt 0:01:30]} 24. Bd4 {[%emt 0:00:36]} e5 {[%emt 0:04:24]} 25. Ba1 {[%emt 0:00:18]} Qd7 {[%emt 0:00:36]} 26. Qd1 {[%emt 0:00:39]} Qh3 {[%emt 0:01:59]} 27. Rf3 {[%emt 0:01:02]} Qe6 {[%emt 0:00:09]} 28. Rf2 {[%emt 0:00:36]} exf4 {[%emt 0:00:48]} 29. exf4 {[%emt 0:00:26]} Qf5 {[%emt 0:00:16]} 30. Qc2 {[%emt 0:00:29]} fxg5 {[%emt 0:00:56]} 31. hxg5 {[%emt 0:00:25]} Nd5 {[%emt 0:00:40]} 32. Qxf5 {[%emt 0:00:54]} Rxf5 {[%emt 0:00:02]} 33. Be5 {[%emt 0:00:32]} Bxe5 {[%emt 0:01:23]} 34. fxe5 {[%emt 0:00:02]} Rxe5 {[%emt 0:00:08]} 35. g6 {[%emt 0:00:13]} hxg6 {[%emt 0:00:30]} 36. Nh4 {[%emt 0:00:26]} Kh7 {[%emt 0:00:59]} 37. Rh2 {[%emt 0:01:12]} Rh5 {[%emt 0:00:11]} 38. Nf3 {[%emt 0:00:03]} Rxh2 {[%emt 0:01:01]} 39. Kxh2 {[%emt 0:00:03]} Kg8 {[%emt 0:08:35]} 40. Rc5 {[%emt 0:00:32]} Rb2+ {[%emt 0:01:48]} 41. Kg3 {[%emt 0:00:15]} Ne7 {[%emt 0:01:00]} 42. Rxc7 {[%emt 0:00:31]} Nf5+ {[%emt 0:00:01]} 43. Kf4 {[%emt 0:01:26]} Rxa2 {[%emt 0:01:56]} 44. Ng5 {[%emt 0:00:44]} Ra4+ {[%emt 0:00:26]} 45. Ke5 {[%emt 0:00:32]} Ra5+ {[%emt 0:00:07]} 46. Kf4 {[%emt 0:00:06]} Nd6 {[%emt 0:00:44]} 47. Rc6 {[%emt 0:00:54]} Rf5+ {[%emt 0:00:56]} 48. Kg4 {[%emt 0:00:01]} Rd5 {[%emt 0:00:08]} 49. Rc7 {[%emt 0:00:18]} a5 {[%emt 0:01:24]} 50. Ra7 {[%emt 0:00:01]} Re5 {[%emt 0:01:58]} 51. Ra8+ {[%emt 0:00:35]} Ne8 {[%emt 0:00:21]} 52. Kf4 {[%emt 0:00:13]} Rf5+ {[%emt 0:00:14]} 53. Kg4 {[%emt 0:00:03]} Kf8 {[%emt 0:00:25]} 54. Ra7 {[%emt 0:00:42]} Rb5 {[%emt 0:01:24]} 55. Ne6+ {[%emt 0:01:26]} Kg8 {[%emt 0:00:01]} 56. Re7 {[%emt 0:01:06]} Nf6+ {[%emt 0:01:20]} 57. Kh4 {[%emt 0:00:21]} Re5 {[%emt 0:00:37]} 58. Rxg7+ {[%emt 0:00:41]} Kh8 {[%emt 0:00:01]} 59. Re7 {[%emt 0:00:18]} g5+ {[%emt 0:00:13]} 60. Kg3 {[%emt 0:00:28]} a4 {[%emt 0:00:19]} 0-1

[Event "Magistral Punta del Este 2025"]
[Site "Punta Ballena Maldonado"]
[Date "2025.03.15"]
[Round "2.2"]
[White "Galaviz Medina, Sion Radamantys"]
[Black "Rodriguez Vila, Andres"]
[Result "0-1"]
[Annotator "ChessBase"]
[ECO "A90"]
[WhiteElo "2501"]
[BlackElo "2429"]
[PlyCount "140"]
[EventDate "2025.03.13"]
[EventType "tourn"]
[EventCountry "URU"]
[SourceTitle "playchess.com"]
[Source "ChessBase"]
[SourceQuality "1"]
[TimeControl "5400+30"]

1. d4 {[%emt 0:00:43]} e6 {[%emt 0:00:52]} 2. c4 {[%emt 0:00:13]} d5 {[%emt 0:00:17]} 3. Nc3 {[%emt 0:00:40]} f5 {[%emt 0:00:06]} 4. Nf3 {[%emt 0:15:57]} Nf6 {[%emt 0:00:13]} 5. g3 {[%emt 0:03:51]} c6 {[%emt 0:02:09]} 6. Bg2 {[%emt 0:00:10]} Bd6 {[%emt 0:00:06]} 7. O-O {[%emt 0:00:07]} O-O {[%emt 0:00:04]} 8. b3 {[%emt 0:02:26]} Nbd7 {[%emt 0:00:42]} 9. Bb2 {[%emt 0:04:44]} b6 {[%emt 0:02:16]} 10. cxd5 {[%emt 0:14:37]} exd5 {[%emt 0:00:05]} 11. Qc2 {[%emt 0:00:08]} Qe7 {[%emt 0:00:02]} 12. Qxf5 {[%emt 0:11:30]} Ne4 {[%emt 0:02:03]} 13. Qh5 {[%emt 0:00:09]} Ndf6 {[%emt 0:07:57]} 14. Qh4 {[%emt 0:00:10]} Nxc3 {[%emt 0:00:20]} 15. Bxc3 {[%emt 0:00:01]} Qxe2 {[%emt 0:00:12]} 16. Rfe1 {[%emt 0:00:34]} Qc2 {[%emt 0:00:08]} 17. Rec1 {[%emt 0:18:59]} Qf5 {[%emt 0:10:33]} 18. Qg5 {[%emt 0:01:39]} Ne4 {[%emt 0:01:19]} 19. Qxf5 {[%emt 0:00:06]} Bxf5 {[%emt 0:00:33]} 20. Be1 {[%emt 0:06:15]} c5 {[%emt 0:01:12]} 21. dxc5 {[%emt 0:03:06]} Bxc5 {[%emt 0:00:16]} 22. Rd1 {[%emt 0:00:52]} Bg4 {[%emt 0:11:34]} 23. Rd3 {[%emt 0:00:05]} a5 {[%emt 0:00:41]} 24. h3 {[%emt 0:01:41]} Bf5 {[%emt 0:01:25]} 25. Rxd5 {[%emt 0:04:33]} Rae8 {[%emt 0:05:21]} 26. g4 {[%emt 0:01:14]} Bc8 {[%emt 0:00:06]} 27. Rc1 {[%emt 0:03:05]} Bb7 {[%emt 0:13:18]} 28. Re5 {[%emt 0:01:15]} Ng3 {[%emt 0:01:16]} 29. Rxe8 {[%emt 0:04:42]} Rxe8 {[%emt 0:00:05]} 30. Rd1 {[%emt 0:00:04]} Ne2+ {[%emt 0:00:16]} 31. Kh2 {[%emt 0:00:11]} Nf4 {[%emt 0:04:32]} 32. Bh1 {[%emt 0:00:04]} h6 {[%emt 0:07:14]} 33. h4 {[%emt 0:01:47]} Ba6 {[%emt 0:01:15]} 34. Bc3 {[%emt 0:01:12]} Nd3 {[%emt 0:01:23]} 35. Rd2 {[%emt 0:00:38]} Bd6+ {[%emt 0:04:25]} 36. Kg1 {[%emt 0:00:16]} Re4 {[%emt 0:00:09]} 37. Bg2 {[%emt 0:00:43]} Rxg4 {[%emt 0:00:19]} 38. Nh2 {[%emt 0:00:03]} Rxh4 {[%emt 0:03:21]} 39. Nf1 {[%emt 0:00:01]} Bc5 {[%emt 0:01:50]} 40. Ne3 {[%emt 0:01:59]} Rh5 {[%emt 0:04:32]} 41. Bd5+ {[%emt 0:00:00]} Kf8 {[%emt 0:05:30]} 42. Be4 {[%emt 0:00:05]} Nf4 {[%emt 0:01:03]} 43. Bb2 {[%emt 0:00:48]} Ne2+ {[%emt 0:01:14]} 44. Kg2 {[%emt 0:00:02]} Rg5+ {[%emt 0:00:08]} 45. Kh2 {[%emt 0:00:27]} Bb4 {[%emt 0:03:49]} 46. Rd7 {[%emt 0:00:41]} Bb5 {[%emt 0:00:09]} 47. Rd1 {[%emt 0:00:47]} Nc3 {[%emt 0:02:17]} 48. Bxc3 {[%emt 0:00:31]} Bxc3 {[%emt 0:00:03]} 49. Nd5 {[%emt 0:00:12]} Be5+ {[%emt 0:00:54]} 50. f4 {[%emt 0:00:53]} Bd6 {[%emt 0:01:09]} 51. Kh1 {[%emt 0:00:32]} Rh5+ {[%emt 0:01:11]} 52. Kg2 {[%emt 0:00:04]} Bc6 {[%emt 0:00:08]} 53. Kf3 {[%emt 0:00:57]} Rh3+ {[%emt 0:00:49]} 54. Kg2 {[%emt 0:00:10]} Rh4 {[%emt 0:00:13]} 55. Kf3 {[%emt 0:00:47]} b5 {[%emt 0:02:22]} 56. Rd4 {[%emt 0:00:18]} g5 {[%emt 0:01:17]} 57. fxg5 {[%emt 0:00:25]} hxg5 {[%emt 0:00:06]} 58. Rd2 {[%emt 0:00:47]} g4+ {[%emt 0:00:36]} 59. Ke3 {[%emt 0:00:06]} g3 {[%emt 0:01:08]} 60. Rc2 {[%emt 0:00:39]} Bb7 {[%emt 0:00:28]} 61. Bf3 {[%emt 0:00:25]} Rh6 {[%emt 0:00:53]} 62. Kd3 {[%emt 0:00:40]} Rh3 {[%emt 0:00:33]} 63. Bg2 {[%emt 0:00:40]} Rh2 {[%emt 0:00:38]} 64. Kd4 {[%emt 0:00:04]} Kf7 {[%emt 0:00:20]} 65. Re2 {[%emt 0:00:19]} b4 {[%emt 0:00:20]} 66. Rc2 {[%emt 0:00:29]} Rh4+ {[%emt 0:00:31]} 67. Ke3 {[%emt 0:00:11]} Bb8 {[%emt 0:00:31]} 68. Kd3 {[%emt 0:00:59]} Be5 {[%emt 0:00:41]} 69. Ke3 {[%emt 0:00:18]} Rh2 {[%emt 0:00:49]} 70. Ke4 {[%emt 0:01:00]} Rxg2 {[%emt 0:01:13]} 0-1